fUST/lending_fUST_20240113
["ID","MTS","AMOUNT","RATE_DAILY","PERIOD"]
[311392984,1705075849047,-500.0,0.00022739,2]
[311392986,1705075849056,-551.41,0.00022739,2]
[311392988,1705075849065,-500.0,0.00022739,2]
[311392990,1705075849074,-500.0,0.00022739,2]
[311392992,1705075849083,-500.0,0.00022739,2]
[311392994,1705075849093,-500.0,0.00022739,2]
[311392996,1705075849102,-500.0,0.00022739,2]
[311392998,1705075849111,-500.0,0.00022739,2]
[311393000,1705075849120,-500.0,0.00022739,2]
[311393002,1705075849130,-554.86,0.00022739,2]
[311393004,1705075849139,-3732.18,0.00022739,2]
[311393006,1705075849148,-1655.33,0.00022739,2]
[311393008,1705075849158,-500.0,0.00022739,2]
[311393010,1705075849168,-1156.11,0.00022739,2]
[311393012,1705075849177,-610.0,0.00022739,2]
[311393014,1705075849187,-939.93,0.00022739,2]
[311393016,1705075849196,-722.21,0.00022739,2]
[311393018,1705075849208,-1397.78,0.00022739,2]
[311393020,1705075849218,-886.42,0.00022739,2]
[311393022,1705075849227,-717.77,0.00022739,2]
[311393024,1705075849236,-520.69,0.00022739,2]
[311393026,1705075849245,-288.72063185,0.000229,2]
[311393028,1705075849254,-166.666666,0.00022944,2]
[311393030,1705075849264,-2093.76186828,0.00023,2]
[311393032,1705075849274,-517.45744258,0.00023012,2]
[311393034,1705075849283,-500.0,0.00023013,2]
[311393036,1705075849293,-622.81826358,0.00023013,2]
[311393038,1705075849304,-500.0,0.00023013,2]
[311393040,1705075849315,-500.0,0.00023013,2]
[311393042,1705075849325,-500.0,0.00023013,2]
[311393044,1705075849335,-500.0,0.00023013,2]
[311393046,1705075849344,-623.74,0.00023013,2]
[311393048,1705075849353,-500.0,0.00023013,2]
[311393050,1705075849363,-500.0,0.00023013,2]
[311393052,1705075849372,-167.63374893,0.00023013,2]
[311393054,1705075849381,-500.0,0.00023013,2]
[311393056,1705075849391,-315.32683654,0.00023013,2]
[311393058,1705075849401,-500.0,0.00023013,2]
[311393060,1705075849411,-500.0,0.00023013,2]
[311393062,1705075849421,-778.12,0.00023013,2]
[311393064,1705075849431,-205.31704762,0.00023013,2]
[311393066,1705075849440,-500.0,0.00023013,2]
[311393068,1705075849451,-500.0,0.00023013,2]
[311393070,1705075849459,-500.0,0.00023013,2]
[311393072,1705075849468,-500.0,0.00023013,2]
[311393073,1705075849477,-500.0,0.00023013,2]
[311393075,1705075849486,-1274.56,0.00023013,2]
[311393078,1705075849496,-551.41,0.00023013,2]
[311393080,1705075849505,-281.36,0.00023013,2]
[311393082,1705075849515,-500.0,0.00023013,2]
[311393084,1705075849524,-500.0,0.00023013,2]
[311393085,1705075849534,-500.0,0.00023013,2]
[311393088,1705075849543,-500.0,0.00023013,2]
[311393090,1705075849553,-500.0,0.00023013,2]
[311393092,1705075849562,-500.0,0.00023013,2]
[311393093,1705075849571,-500.0,0.00023013,2]
[311393095,1705075849581,-554.86,0.00023013,2]
[311393098,1705075849591,-3732.18,0.00023013,2]
[311393100,1705075849600,-1655.33,0.00023013,2]
[311393102,1705075849611,-500.0,0.00023013,2]
[311393104,1705075849621,-1156.11,0.00023013,2]
[311393106,1705075849631,-610.0,0.00023013,2]
[311393108,1705075849640,-939.93,0.00023013,2]
[311393110,1705075849650,-722.21,0.00023013,2]
[311393112,1705075849659,-1397.78,0.00023013,2]
[311393114,1705075849669,-886.42,0.00023013,2]
[311393116,1705075849678,-717.77,0.00023013,2]
[311393118,1705075849687,-520.69,0.00023013,2]
[311393120,1705075849696,-231.9527,0.00023171,2]
[311393122,1705075849706,-165.25,0.00023287,2]
[311393123,1705075849715,-500.0,0.00023287,2]
[311393126,1705075849725,-500.0,0.00023287,2]
[311393127,1705075849734,-500.0,0.00023287,2]
[311393129,1705075849744,-500.0,0.00023287,2]
[311393132,1705075849754,-623.74,0.00023287,2]
[311393133,1705075849765,-274.50873839,0.00023287,2]
[311393136,1705075849775,-500.0,0.00023287,2]
[311393138,1705075849786,-500.0,0.00023287,2]
[311393139,1705075849797,-500.0,0.00023287,2]
[311393142,1705075849806,-778.12,0.00023287,2]
[311393144,1705075849816,-500.0,0.00023287,2]
[311393145,1705075849825,-500.0,0.00023287,2]
[311393147,1705075849837,-500.0,0.00023287,2]
[311393150,1705075849849,-500.0,0.00023287,2]
[311393151,1705075849858,-500.0,0.00023287,2]
[311393154,1705075849868,-1274.56,0.00023287,2]
[311393155,1705075849879,-551.41,0.00023287,2]
[311393157,1705075849891,-352.48616141,0.00023287,2]
[311393160,1705075849902,-500.0,0.00023287,2]
[311393162,1705075849912,-487.23755677,0.00023287,2]
[311393164,1705075849923,-500.0,0.00023287,2]
[311393166,1705075849932,-500.0,0.00023287,2]
[311393168,1705075849942,-500.0,0.00023287,2]
[311393170,1705075849952,-500.0,0.00023287,2]
[311393171,1705075849962,-554.86,0.00023287,2]
[311393173,1705075849972,-3732.18,0.00023287,2]
[311393175,1705075849982,-1655.33,0.00023287,2]
[311393178,1705075849992,-500.0,0.00023287,2]
[311393179,1705075850001,-1156.11,0.00023287,2]
[311393181,1705075850011,-610.0,0.00023287,2]
[311393182,1705075850020,-939.93,0.00023287,2]
[311393184,1705075850029,-722.21,0.00023287,2]
[311393186,1705075850040,-1397.78,0.00023287,2]
[311393188,1705075850049,-886.42,0.00023287,2]
[311393190,1705075850059,-717.77,0.00023287,2]
[311393192,1705075850068,-520.69,0.00023287,2]
[311393194,1705075850077,-2401.754414,0.00023287,2]
[311393196,1705075850087,-2401.754414,0.00023287,2]
[311393198,1705075850096,-576.2016,0.00023287,2]
[311393200,1705075850106,-576.2016,0.00023287,2]
[311393202,1705075850115,-300.012583,0.00023287,2]
[311393204,1705075850125,-300.012583,0.00023287,2]
[311393205,1705075850134,-166.666666,0.00023456,2]
[311393208,1705075850144,-307.47542907,0.00023559,2]
[311393209,1705075850154,-163.38213589,0.00023559,2]
[311393211,1705075850165,-9923.17263833,0.00023559,2]
[311393213,1705075850175,-1162.32804307,0.00023559,2]
[311393215,1705075850185,-394.34195604,0.00023559,2]
[311393217,1705075850195,-898.23520308,0.00023559,2]
[311393219,1705075850207,-265.13443689,0.00023559,2]
[311393221,1705075850216,-500.0,0.00023561,2]
[311393223,1705075850225,-346.0635217,0.00023561,2]
[311393225,1705075850235,-500.0,0.00023561,2]
[311393227,1705075850245,-500.0,0.00023561,2]
[311393229,1705075850254,-623.74,0.00023561,2]
[311393231,1705075850264,-500.0,0.00023561,2]
[311393233,1705075850274,-500.0,0.00023561,2]
[311393235,1705075850283,-500.0,0.00023561,2]
[311393237,1705075850293,-778.12,0.00023561,2]
[311393239,1705075850302,-500.0,0.00023561,2]
[311393241,1705075850312,-180.93,0.00023561,2]
[311393243,1705075850321,-499.0,0.00023561,2]
[311393245,1705075850331,-500.0,0.00023561,2]
[311393247,1705075850340,-500.0,0.00023561,2]
[311393249,1705075850350,-1274.56,0.00023561,2]
[311393251,1705075850359,-551.41,0.00023561,2]
[311393253,1705075850369,-500.0,0.00023561,2]
[311393255,1705075850379,-500.0,0.00023561,2]
[311393257,1705075850389,-500.0,0.00023561,2]
[311393259,1705075850398,-500.0,0.00023561,2]
[311393261,1705075850407,-500.0,0.00023561,2]
[311393263,1705075850417,-554.86,0.00023561,2]
[311393264,1705075850426,-3732.18,0.00023561,2]
[311393266,1705075850436,-1655.33,0.00023561,2]
[311393268,1705075850446,-500.0,0.00023561,2]
[311393270,1705075850458,-1156.11,0.00023561,2]
[311393273,1705075850468,-610.0,0.00023561,2]
[311393274,1705075850479,-939.93,0.00023561,2]
[311393277,1705075850490,-722.21,0.00023561,2]
[311393278,1705075850500,-1397.78,0.00023561,2]
[311393281,1705075850510,-886.42,0.00023561,2]
[311393283,1705075850519,-717.77,0.00023561,2]
[311393284,1705075850529,-520.69,0.00023561,2]
[311393286,1705075850538,-500.0,0.00023835,2]
[311393288,1705075850548,-500.0,0.00023835,2]
[311393290,1705075850557,-500.0,0.00023835,2]
[311393292,1705075850566,-623.74,0.00023835,2]
[311393294,1705075850575,-500.0,0.00023835,2]
[311393296,1705075850585,-500.0,0.00023835,2]
[311393298,1705075850594,-500.0,0.00023835,2]
[311393300,1705075850604,-778.12,0.00023835,2]
[311393302,1705075850613,-500.0,0.00023835,2]
[311393304,1705075850622,-500.0,0.00023835,2]
[311393306,1705075850631,-500.0,0.00023835,2]
[311393308,1705075850641,-1274.56,0.00023835,2]
[311393310,1705075850650,-551.41,0.00023835,2]
[311393312,1705075850659,-500.0,0.00023835,2]
[311393314,1705075850668,-500.0,0.00023835,2]
[311393316,1705075850677,-500.0,0.00023835,2]
[311393318,1705075850687,-500.0,0.00023835,2]
[311393319,1705075850696,-500.0,0.00023835,2]
[311393321,1705075850707,-554.86,0.00023835,2]
[311393323,1705075850717,-3732.18,0.00023835,2]
[311393325,1705075850726,-1655.33,0.00023835,2]
[311393327,1705075850735,-500.0,0.00023835,2]
[311393329,1705075850745,-1156.11,0.00023835,2]
[311393332,1705075850755,-610.0,0.00023835,2]
[311393333,1705075850765,-939.93,0.00023835,2]
[311393336,1705075850775,-722.21,0.00023835,2]
[311393337,1705075850785,-1397.78,0.00023835,2]
[311393340,1705075850795,-886.42,0.00023835,2]
[311393341,1705075850804,-717.77,0.00023835,2]
[311393343,1705075850815,-520.69,0.00023835,2]
[311393346,1705075850826,-300.012583,0.00023835,2]
[311393348,1705075850837,-300.012583,0.00023835,2]
[311393350,1705075850846,-159.614671,0.00023835,2]
[311393352,1705075850856,-497.12734932,0.000239,5]
[311393354,1705075850865,-166.666666,0.00023969,2]
[311393355,1705075850875,-4005.78937176,0.00024,2]
[311393357,1705075850885,-2401.754414,0.00024,2]
[311393359,1705075850896,-2401.754414,0.00024,2]
[311393361,1705075850906,-576.2016,0.00024,2]
[311393363,1705075850915,-576.2016,0.00024,2]
[311393365,1705075850924,-352.96625698,0.00024109,2]
[311393534,1705075852849,500.0,0.00021917,2]
[311393663,1705075854268,500.0,0.00021917,2]
[311393776,1705075856170,500.0,0.00021917,2]
[311393841,1705075858699,500.0,0.00021917,2]
[311393842,1705075859187,500.0,0.00021917,2]
[311393867,1705075859827,503.72216458,0.00021917,2]
[311393879,1705075861910,478.86533775,0.00021917,2]
[311393880,1705075861945,155.03255684,0.00021696,4]
[311393883,1705075862735,500.0,0.00021917,2]
[311393890,1705075865281,500.0,0.00021917,2]
[311393901,1705075867481,500.0,0.00021917,2]
[311393902,1705075868168,500.0,0.00021917,2]
[311393906,1705075870213,500.0,0.00021917,2]
[311393927,1705075905004,-155.03255684,0.0001988,3]
[311393928,1705075905032,-605.6,0.00021917,2]
[311393929,1705075905059,-500.0,0.00021917,2]
[311393930,1705075905087,-500.0,0.00021917,2]
[311393931,1705075905114,-500.0,0.00021917,2]
[311393932,1705075905142,-1174.39,0.00021917,2]
[311393933,1705075905168,-500.0,0.00021917,2]
[311393934,1705075905194,-500.0,0.00021917,2]
[311393935,1705075905219,-3937.50128455,0.00022,2]
[311393936,1705075905247,-604.75,0.00022081,3]
[311393937,1705075905274,-10851.12606054,0.00022091,2]
[311393939,1705075905791,1053.58611355,0.00022089,7]
[311393952,1705075913537,-223.89868289,0.00021916,2]
[311393953,1705075913563,-521.0,0.00021916,2]
[311393954,1705075913591,-500.0,0.00021917,2]
[311393955,1705075913617,-549.71027155,0.00021917,2]
[311393956,1705075913643,-18033.79094749,0.00022091,2]
[311393968,1705075918705,-300.0,0.00021917,2]
[311393969,1705075918731,-2080.28320628,0.00021917,2]
[311393970,1705075918758,-1153.23,0.00022081,3]
[311393971,1705075918784,-1986.00376576,0.0002209,2]
[311393972,1705075918809,-14308.88292989,0.00022091,2]
[311393980,1705075925630,-155.05116689,0.0001988,3]
[311393981,1705075925659,-8743.9820779,0.00021259,2]
[311393982,1705075925687,-500.0,0.00021917,2]
[311393983,1705075925715,-1822.38176649,0.00021917,2]
[311393984,1705075925745,-500.0,0.00021917,2]
[311393985,1705075925777,-515.78038111,0.00021917,2]
[311393987,1705075925806,-156.91175548,0.00022,2]
[311393988,1705075925835,-7434.29275406,0.00022091,2]
[311393992,1705075927785,365.9151615,0.0002209,7]
[311394000,1705075930820,-568.38431352,0.00021917,2]
[311394001,1705075930847,-2080.28320628,0.00021917,2]
[311394002,1705075930873,-500.0,0.00021917,2]
[311394003,1705075930900,-425.12426258,0.00022,2]
[311394004,1705075930926,-961.02,0.00022081,3]
[311394005,1705075930956,-223.89868289,0.0002209,2]
[311394006,1705075930984,-15069.68943666,0.00022091,2]
[311394024,1705075937791,-224.032327,0.00021894,2]
[311394025,1705075937817,-500.0,0.00021917,2]
[311394026,1705075937846,-500.0,0.00021917,2]
[311394027,1705075937873,-18604.36757493,0.00022091,2]
[311394042,1705075944563,-300.41128121,0.00021817,2]
[311394043,1705075944589,-521.0,0.00021868,2]
[311394044,1705075944617,-300.0,0.00021917,2]
[311394045,1705075944643,-500.0,0.00021917,2]
[311394046,1705075944670,-500.0,0.00021917,2]
[311394047,1705075944697,-1822.38176649,0.00021917,2]
[311394048,1705075944723,-507.5451447,0.00021917,2]
[311394049,1705075944750,-425.12426258,0.0002209,2]
[311394050,1705075944775,-295.82589551,0.0002209,2]
[311394051,1705075944802,-14656.11155144,0.00022091,2]
[311394060,1705075951462,-501.35168108,0.00021917,2]
[311394061,1705075951487,-500.0,0.00021917,2]
[311394062,1705075951512,-1633.63092283,0.00021917,2]
[311394063,1705075951539,-500.0,0.00021917,2]
[311394064,1705075951566,-223.89868289,0.0002209,2]
[311394065,1705075951594,-16469.51861513,0.00022091,2]
[311394067,1705075959296,-192.48042124,0.00021187,2]
[311394068,1705075959322,-521.0,0.00021868,2]
[311394069,1705075959348,-500.0,0.00021917,2]
[311394070,1705075959373,-502.91432883,0.00021917,2]
[311394071,1705075959398,-18112.00515186,0.00022091,2]
[311394084,1705075969192,-500.0,0.00021917,2]
[311394085,1705075969219,-1822.38176649,0.00021917,2]
[311394086,1705075969358,-500.0,0.00021917,2]
[311394087,1705075969386,-500.0,0.00021917,2]
[311394088,1705075969412,-555.15143661,0.00021917,2]
[311394089,1705075969438,-500.0,0.00021917,2]
[311394090,1705075969466,-8691.42561848,0.00022091,2]
[311394091,1705075969491,-305.57833437,0.00022091,2]
[311394092,1705075969517,-155.03255684,0.00022091,2]
[311394093,1705075972484,500.0,0.00021917,2]
[311394094,1705075973201,331.71959363,0.00021917,2]
[311394112,1705076019353,-1129.87,0.00021917,2]
[311394113,1705076019380,-500.0,0.00021917,2]
[311394114,1705076019407,-500.0,0.00021917,2]
[311394115,1705076019435,-3053.42,0.00021917,2]
[311394116,1705076019460,-500.0,0.00021917,2]
[311394117,1705076019485,-501.00806905,0.00021917,2]
[311394118,1705076019511,-500.0,0.00021917,2]
[311394119,1705076019538,-500.0,0.00021917,2]
[311394120,1705076019563,-562.04115728,0.00021917,2]
[311394121,1705076019591,-500.0,0.00021917,2]
[311394122,1705076019617,-500.0,0.00021917,2]
[311394123,1705076019643,-500.0,0.00021917,2]
[311394124,1705076019669,-344.44482029,0.00021917,2]
[311394125,1705076019695,-723.61,0.00022081,3]
[311394126,1705076019722,-680.25,0.00022081,3]
[311394127,1705076019747,-566.88,0.00022081,3]
[311394128,1705076019772,-472.4,0.00022081,3]
[311394129,1705076019797,-285.7548216,0.0002209,2]
[311394130,1705076019825,-7508.72103371,0.00022091,2]
[311394133,1705076026111,-500.0,0.00021917,2]
[311394134,1705076026138,-1450.0,0.00021917,2]
[311394135,1705076026164,-521.10576847,0.0002209,2]
[311394136,1705076026191,-17357.29413346,0.00022091,2]
[311394138,1705076030250,-425.12426258,0.0002209,2]
[311394139,1705076030281,-19403.27563935,0.00022091,2]
[311394140,1705076030626,-393.66,0.00022081,3]
[311394141,1705076030654,-19434.73990193,0.00022091,2]
[311394143,1705076030969,-19828.39990193,0.00022091,2]
[311394144,1705076031364,-500.0,0.00021917,2]
[311394145,1705076031393,-19328.39990193,0.00022091,2]
[311394146,1705076031683,-19828.39990193,0.00022091,2]
[311394147,1705076032050,-19828.39990193,0.00022091,2]
[311394148,1705076032462,-19828.39990193,0.00022091,2]
[311394149,1705076032807,-19828.39990193,0.00022091,2]
[311394150,1705076033155,-1822.38176649,0.00021917,2]
[311394151,1705076033183,-18006.01813544,0.00022091,2]
[311394152,1705076033554,-19828.39990193,0.00022091,2]
[311394153,1705076033972,-19828.39990193,0.00022091,2]
[311394156,1705076039390,-500.0,0.00021917,2]
[311394157,1705076039419,-500.0,0.00021917,2]
[311394158,1705076039448,-500.0,0.00021917,2]
[311394159,1705076039476,-526.23,0.00021917,2]
[311394160,1705076039504,-821.83,0.00021917,2]
[311394161,1705076039533,-16980.33990193,0.00022091,2]
[311394162,1705076039783,-395.41399557,0.00021917,2]
[311394163,1705076039810,-1496.44914824,0.00022091,2]
[311394164,1705076039840,-155.05116689,0.00022091,2]
[311394174,1705076073188,-227.81,0.00021907,3]
[311394175,1705076073217,-500.0,0.00021917,2]
[311394176,1705076073246,-500.0,0.00021917,2]
[311394177,1705076073276,-6762.67,0.00021917,2]
[311394178,1705076073306,-1822.38176649,0.00021917,2]
[311394179,1705076073340,-500.0,0.00021917,2]
[311394180,1705076073369,-500.0,0.00021917,2]
[311394181,1705076073397,-500.0,0.00021917,2]
[311394182,1705076073425,-8515.53813544,0.00021917,2]
[311394183,1705076073565,-19828.39990193,0.00021917,2]
[311394184,1705076073998,-19828.39990193,0.00021917,2]
[311394185,1705076074341,-19828.39990193,0.00021917,2]
[311394186,1705076074684,-19828.39990193,0.00021917,2]
[311394187,1705076075083,-19828.39990193,0.00021917,2]
[311394188,1705076075447,-19828.39990193,0.00021917,2]
[311394189,1705076075856,-19828.39990193,0.00021917,2]
[311394190,1705076076222,-19828.39990193,0.00021917,2]
[311394191,1705076076623,-189.85,0.00021907,3]
[311394192,1705076076652,-19638.54990193,0.00021917,2]
[311394193,1705076076984,-19828.39990193,0.00021917,2]
[311394194,1705076077491,-19828.39990193,0.00021917,2]
[311394195,1705076077738,-4886.43998272,0.00021917,2]
[311394196,1705076077766,-500.0,0.00021917,2]
[311394197,1705076077803,-500.0,0.00021917,2]
[311394198,1705076077843,-612.25,0.00021917,2]
[311394199,1705076077879,-500.0,0.00021917,2]
[311394200,1705076077917,-587.04,0.00021917,2]
[311394201,1705076077953,-500.0,0.00021917,2]
[311394202,1705076077986,-500.0,0.00021917,2]
[311394203,1705076078019,-220.03156604,0.00022,2]
[311394205,1705076084517,155.0991883,0.000286,30]
[311394397,1705076880610,1552.65880674,0.00029,30]
[311394398,1705076881916,200.0,0.00021864,7]
[311394409,1705076908770,-250.08638878,0.0001977,2]
[311394410,1705076912456,-155.0310062,0.0001977,2]
[311394414,1705076923654,-155.0310062,0.0001977,3]
[311394415,1705076923683,-155.0310062,0.0001977,2]
[311394450,1705076989057,-155.0310062,0.00019107,3]
[311394451,1705076989089,-11844.9689938,0.0001977,2]
[311394452,1705076989257,-12000.0,0.0001977,2]
[311394453,1705076989294,-12000.0,0.0001977,2]
[311394454,1705076989363,-12000.0,0.0001977,2]
[311394455,1705076989476,-12000.0,0.0001977,2]
[311394456,1705076989580,-12000.0,0.0001977,2]
[311394457,1705076989677,-12000.0,0.0001977,2]
[311394458,1705076989782,-12000.0,0.0001977,2]
[311394459,1705076989892,-12000.0,0.0001977,2]
[311394460,1705076989992,-12000.0,0.0001977,2]
[311394461,1705076990103,-12000.0,0.0001977,2]
[311394463,1705076990205,-12000.0,0.0001977,2]
[311394464,1705076990412,-12000.0,0.0001977,2]
[311394465,1705076990542,-12000.0,0.0001977,2]
[311394466,1705076990589,-12000.0,0.0001977,2]
[311394467,1705076990646,-12000.0,0.0001977,2]
[311394468,1705076990778,-12000.0,0.0001977,2]
[311394469,1705076990891,-12000.0,0.0001977,2]
[311394470,1705076990995,-12000.0,0.0001977,2]
[311394471,1705076991103,-12000.0,0.0001977,2]
[311394472,1705076991225,-12000.0,0.0001977,2]
[311394473,1705076991330,-12000.0,0.0001977,2]
[311394474,1705076991436,-12000.0,0.0001977,2]
[311394475,1705076991529,-7773.83919233,0.0001977,2]
[311394481,1705077010896,-155.02790502,0.00017888,3]
[311394482,1705077010924,-11844.97209498,0.0001977,2]
[311394483,1705077011031,-12000.0,0.0001977,2]
[311394484,1705077011158,-12000.0,0.0001977,2]
[311394485,1705077011276,-12000.0,0.0001977,2]
[311394486,1705077011376,-12000.0,0.0001977,2]
[311394487,1705077011518,-12000.0,0.0001977,2]
[311394488,1705077011640,-12000.0,0.0001977,2]
[311394489,1705077011719,-12000.0,0.0001977,2]
[311394490,1705077011819,-12000.0,0.0001977,2]
[311394491,1705077011944,-12000.0,0.0001977,2]
[311394492,1705077012061,-12000.0,0.0001977,2]
[311394493,1705077012176,-12000.0,0.0001977,2]
[311394494,1705077012290,-12000.0,0.0001977,2]
[311394495,1705077012405,-12000.0,0.0001977,2]
[311394496,1705077012513,-12000.0,0.0001977,2]
[311394497,1705077012622,-12000.0,0.0001977,2]
[311394498,1705077012717,-11687.68349264,0.0001977,2]
[311394571,1705077034146,-155.02790502,0.00017867,3]
[311394573,1705077034156,-185.09175555,0.00019771,2]
[311394575,1705077034166,-156.5101755,0.00019854,2]
[311395006,1705077037932,-6620.39562294,0.00019854,2]
[311395013,1705077037991,-14824.19577815,0.00019854,2]
[311395021,1705077038053,-3298.89842341,0.00019854,2]
[311395023,1705077038063,-12992.67944653,0.00019877,2]
[311395025,1705077038072,-1129.78277875,0.00019878,2]
[311395027,1705077038081,-250.08638878,0.00019941,2]
[311395029,1705077038090,-217.424302,0.00019942,2]
[311395031,1705077038099,-166.42374158,0.0002123,2]
[311395032,1705077038109,-309.72112703,0.00021231,2]
[311395034,1705077038119,-1185.47750698,0.00021232,2]
[311395036,1705077038128,-554.56998802,0.00021232,2]
[311395038,1705077038140,-174.18499422,0.00021232,2]
[311395040,1705077038149,-218.51206177,0.00021232,2]
[311395043,1705077038159,-175.78075589,0.00021232,2]
[311395045,1705077038169,-686.20346903,0.00021232,2]
[311395046,1705077038178,-310.00077637,0.00021232,2]
[311395049,1705077038187,-290.40148956,0.00021232,2]
[311395050,1705077038197,-2992.77070427,0.00021232,2]
[311395052,1705077038206,-155.54166956,0.00021232,2]
[311395054,1705077038215,-386.84563712,0.00021232,2]
[311395056,1705077038226,-155.52766918,0.00021232,2]
[311395058,1705077038235,-572.08255613,0.00021232,2]
[311395061,1705077038245,-332.33085601,0.00021232,2]
[311395063,1705077038255,-500.0,0.00021232,2]
[311395064,1705077038264,-155.03263391,0.00021232,2]
[311395066,1705077038274,-642.45734522,0.00021232,2]
[311395069,1705077038284,-1631.58315033,0.00021232,2]
[311395070,1705077038294,-11644.91471353,0.00021232,2]
[311395072,1705077038303,-178.45591819,0.00021232,2]
[311395075,1705077038313,-980.84075748,0.00021233,2]
[311395076,1705077038324,-332.24000245,0.00021233,2]
[311395079,1705077038334,-213.64601717,0.00021817,2]
[311395081,1705077038343,-3834.14,0.00021834,3]
[311395083,1705077038353,-2946.82,0.00021844,3]
[311395084,1705077038362,-4600.97,0.00021844,3]
[311395086,1705077038371,-2670.31,0.00021854,3]
[311395088,1705077038381,-155.16859934,0.00021915,2]
[311395090,1705077038391,-386.21950974,0.00021915,2]
[311395092,1705077038400,-208.85195545,0.00021915,2]
[311395094,1705077038410,-220.68058373,0.00021915,2]
[311395096,1705077038419,-290.05819961,0.00021915,2]
[311395099,1705077038429,-268.31978961,0.00021915,2]
[311395100,1705077038438,-301.18213313,0.00021915,2]
[311395103,1705077038447,-155.04219613,0.00021916,2]
[311395104,1705077038457,-9960.93995732,0.00021916,2]
[311395106,1705077038466,-502.61545032,0.00021917,2]
[311395108,1705077038477,-500.0,0.00021917,2]
[311395111,1705077038486,-500.0,0.00021917,2]
[311395112,1705077038499,-500.0,0.00021917,2]
[311395114,1705077038508,-500.0,0.00021917,2]
[311395117,1705077038518,-500.0,0.00021917,2]
[311395119,1705077038528,-500.0,0.00021917,2]
[311395121,1705077038538,-331.64614035,0.00021917,2]
[311395123,1705077038548,-500.0,0.00021917,2]
[311395124,1705077038557,-500.0,0.00021917,2]
[311395126,1705077038567,-500.0,0.00021917,2]
[311395129,1705077038578,-500.0,0.00021917,2]
[311395131,1705077038588,-504.28732715,0.00021917,2]
[311395132,1705077038597,-337.43216097,0.00021917,2]
[311395135,1705077038606,-500.0,0.00021917,2]
[311395136,1705077038616,-500.0,0.00021917,2]
[311395139,1705077038625,-207.46446491,0.00021917,2]
[311395140,1705077038636,-500.0,0.00021917,2]
[311395143,1705077038646,-500.0,0.00021917,2]
[311395144,1705077038655,-500.0,0.00021917,2]
[311395146,1705077038664,-511.67588667,0.00021917,2]
[311395148,1705077038674,-500.0,0.00021917,2]
[311395150,1705077038684,-500.0,0.00021917,2]
[311395152,1705077038693,-500.0,0.00021917,2]
[311395154,1705077038702,-179.29970668,0.00021917,2]
[311395156,1705077038711,-500.0,0.00021917,2]
[311395158,1705077038720,-506.40633693,0.00021917,2]
[311395160,1705077038730,-507.44134489,0.00021917,2]
[311395162,1705077038739,-500.0,0.00021917,2]
[311395164,1705077038748,-514.16186221,0.00021917,2]
[311395166,1705077038758,-500.0,0.00021917,2]
[311395169,1705077038768,-501.07900066,0.00021917,2]
[311395171,1705077038776,-500.0,0.00021917,2]
[311395172,1705077038785,-500.0,0.00021917,2]
[311395174,1705077038794,-500.0,0.00021917,2]
[311395177,1705077038804,-216.5781608,0.00021917,2]
[311395178,1705077038813,-500.0,0.00021917,2]
[311395180,1705077038822,-500.0,0.00021917,2]
[311395182,1705077038831,-500.0,0.00021917,2]
[311395185,1705077038841,-347.48740305,0.00021917,2]
[311395187,1705077038850,-528.93304443,0.00021917,2]
[311395189,1705077038860,-500.0,0.00021917,2]
[311395191,1705077038869,-503.30208693,0.00021917,2]
[311395193,1705077038878,-500.0,0.00021917,2]